fUSD/lending_fUSD_20260111
["ID","MTS","AMOUNT","RATE_DAILY","PERIOD"]
[401278102,1768097446203,-151.0,0.00016438,2]
[401278103,1768097446213,-233.975632,0.00016438,2]
[401278104,1768097446222,-151.0,0.00016438,2]
[401278105,1768097446231,-248.431621,0.00016438,2]
[401278106,1768097446240,-151.0,0.00016438,2]
[401278107,1768097446249,-151.0,0.00016438,2]
[401278108,1768097446259,-151.0,0.00016438,2]
[401278109,1768097446273,-151.0,0.00016438,2]
[401278110,1768097446282,-151.0,0.00016438,2]
[401278111,1768097446292,-151.0,0.00016438,2]
[401278112,1768097446302,-151.0,0.00016438,2]
[401278113,1768097446312,-151.0,0.00016438,2]
[401278114,1768097446322,-151.0,0.00016438,2]
[401278115,1768097446331,-151.0,0.00016438,2]
[401278116,1768097446342,-151.0,0.00016438,2]
[401278117,1768097446351,-207.556592,0.00016438,2]
[401278118,1768097446361,-151.0,0.00016438,2]
[401278119,1768097446371,-151.0,0.00016438,2]
[401278120,1768097446381,-151.0,0.00016438,2]
[401278121,1768097446391,-151.0,0.00016438,2]
[401278122,1768097446400,-151.0,0.00016438,2]
[401278123,1768097446410,-151.0,0.00016438,2]
[401278124,1768097446420,-151.0,0.00016438,2]
[401278125,1768097446430,-204.057371,0.00016438,2]
[401278126,1768097446444,-251.992378,0.00016438,2]
[401278127,1768097446453,-246.317905,0.00016438,2]
[401278128,1768097446463,-151.0,0.00016438,2]
[401278129,1768097446473,-151.0,0.00016438,2]
[401278130,1768097446483,-151.0,0.00016438,2]
[401278131,1768097446493,-151.0,0.00016438,2]
[401278132,1768097446503,-173.21291938,0.00016438,2]
[401278133,1768097446512,-151.0,0.00016438,2]
[401278134,1768097446521,-261.366992,0.00016438,2]
[401278135,1768097446531,-150.0,0.00016493,2]
[401278136,1768097446540,-5017.1850391,0.000165,3]
[401278137,1768097446550,-150.0,0.00016548,2]
[401278138,1768097446560,-166.66,0.00016579,2]
[401278139,1768097446570,-150.0,0.00016602,2]
[401278140,1768097446579,-1093.48,0.00016636,2]
[401278141,1768097446588,-220.89751557,0.00016657,2]
[401278142,1768097446598,-10181.65249045,0.00016671,2]
[401278143,1768097446608,-166.66,0.00016901,2]
[401278144,1768097446618,-1093.48,0.0001691,2]
[401278145,1768097446627,-209.1,0.00016994,2]
[401278146,1768097446637,-250.0,0.00017,2]
[401278147,1768097446647,-417.62802227,0.00017022,2]
[401278148,1768097446656,-300.0,0.00017036,2]
[401278149,1768097446665,-308.46096969,0.00017036,2]
[401278150,1768097446676,-27682.8861912,0.00017037,2]
[401278152,1768097446686,-300.0,0.00017052,2]
[401278153,1768097446695,-100991.0944825,0.00017053,2]
[401278154,1768097446704,-7555.1365766,0.00017053,2]
[401278155,1768097446714,-151.0,0.00017053,2]
[401278156,1768097446723,-151.0,0.00017053,2]
[401278157,1768097446732,-151.0,0.00017053,2]
[401278158,1768097446741,-589.8154105,0.0001706,2]
[401278159,1768097446751,-770.91790243,0.0001706,2]
[401278160,1768097446760,-152.74964676,0.00017165,2]
[401278161,1768097446769,-160.46630744,0.00017165,2]
[401278162,1768097446779,-500.0,0.00017165,2]
[401278163,1768097446789,-155.85892198,0.00017165,2]
[401278164,1768097446798,-500.0,0.00017165,2]
[401278165,1768097446808,-1093.48,0.00017184,2]
[401278166,1768097446817,-500.0,0.0001722,2]
[401278167,1768097446826,-500.0,0.0001722,2]
[401278168,1768097446835,-1730.9105376,0.00017224,2]
[401278169,1768097446845,-2351.0,0.00017234,2]
[401278170,1768097446855,-500.0,0.00017275,2]
[401278171,1768097446864,-500.0,0.00017275,2]
[401278172,1768097446873,-500.0,0.00017329,2]
[401278173,1768097446883,-500.0,0.00017329,2]
[401278174,1768097446892,-500.0,0.00017384,2]
[401278175,1768097446901,-511.26067782,0.00017384,2]
[401278176,1768097446911,-500.0,0.00017439,2]
[401278177,1768097446922,-1093.54911118,0.00017458,2]
[401278178,1768097446932,-500.0,0.00017494,2]
[401278179,1768097446941,-2000.0,0.000175,2]
[401278180,1768097446951,-168.0,0.00017532,2]
[401278181,1768097446960,-500.0,0.00017549,2]
[401278182,1768097446969,-300.0,0.00017593,2]
[401278183,1768097446979,-6176.8868292,0.00017594,2]
[401278184,1768097446988,-151.0,0.00017594,2]
[401278185,1768097446998,-151.0,0.00017594,2]
[401278186,1768097447008,-151.0,0.00017594,2]
[401278187,1768097447018,-22534.1590854,0.00017594,2]
[401278188,1768097447028,-1685.7788342,0.00017594,2]
[401278189,1768097447037,-500.0,0.00017603,2]
[401278190,1768097447047,-500.0,0.00017658,2]
[401278191,1768097447057,-168.0,0.00017674,2]
[401278192,1768097447067,-500.0,0.00017713,2]
[401278193,1768097447077,-209.1,0.00017722,2]
[401278194,1768097447086,-357.99250845,0.00017768,2]
[401278195,1768097447095,-386.2183454,0.00017804,2]
[401278196,1768097447105,-150.0,0.00017808,2]
[401278197,1768097447114,-10181.65249045,0.00017833,2]
[401278198,1768097447125,-168.0,0.00017842,2]
[401278199,1768097447134,-264.8095173,0.00017863,2]
[401278200,1768097447144,-151.0,0.000179,2]
[401278201,1768097447153,-152.847939,0.000179,2]
[401278202,1768097447163,-957.56055748,0.000179,2]
[401278203,1768097447172,-168.0,0.00017933,2]
[401278204,1768097447185,-334.66,0.00017939,2]
[401278205,1768097447194,-227.26396522,0.00017973,2]
[401278206,1768097447204,-501.57832546,0.00017973,2]
[401278207,1768097447214,-500.0,0.00017973,2]
[401278208,1768097447223,-300.0,0.00017998,2]
[401278209,1768097447234,-500.0,0.00017999,2]
[401278210,1768097447244,-500.0,0.00017999,2]
[401278211,1768097447253,-500.0,0.00017999,2]
[401278212,1768097447262,-500.0,0.00017999,2]
[401278213,1768097447274,-500.0,0.00017999,2]
[401278214,1768097447284,-509.52309661,0.00017999,2]
[401278215,1768097447295,-506.48828153,0.00017999,2]
[401278216,1768097447307,-500.0,0.00017999,2]
[401278217,1768097447317,-500.0,0.00017999,2]
[401278218,1768097447328,-500.0,0.00017999,2]
[401278219,1768097447340,-500.0,0.00017999,2]
[401278220,1768097447349,-500.0,0.00017999,2]
[401278221,1768097447359,-500.0,0.00017999,2]
[401278222,1768097447368,-502.48470698,0.00017999,2]
[401278223,1768097447378,-500.0,0.00017999,2]
[401278224,1768097447388,-500.0,0.00017999,2]
[401278225,1768097447398,-508.33361659,0.00017999,2]
[401278226,1768097447407,-500.0,0.00017999,2]
[401278227,1768097447417,-500.0,0.00017999,2]
[401278228,1768097447427,-504.75868902,0.00017999,2]
[401278229,1768097447665,-500.0,0.00017999,2]
[401278230,1768097447698,-500.0,0.00017999,2]
[401278231,1768097447708,-447.79190405,0.00017999,2]
[401278232,1768097447718,-500.0,0.00017999,2]
[401278233,1768097447727,-500.0,0.00017999,2]
[401278234,1768097447737,-502.70237126,0.00017999,2]
[401278235,1768097447748,-500.0,0.00017999,2]
[401278236,1768097447759,-168.32748958,0.00017999,2]
[401278237,1768097447768,-666.0,0.00017999,2]
[401278238,1768097447777,-500.0,0.00017999,2]
[401278239,1768097447786,-500.0,0.00017999,2]
[401278240,1768097447795,-500.0,0.00017999,2]
[401278241,1768097447804,-279.96,0.00017999,2]
[401278242,1768097447813,-520.12765794,0.00017999,2]
[401278243,1768097447822,-500.0,0.00017999,2]
[401278244,1768097447834,-151.0,0.00017999,2]
[401278245,1768097447843,-500.0,0.00017999,2]
[401278246,1768097447852,-500.0,0.00017999,2]
[401278247,1768097447861,-526.71035729,0.00017999,2]
[401278248,1768097447870,-500.0,0.00017999,2]
[401278249,1768097447880,-500.0,0.00017999,2]
[401278250,1768097447889,-508.38523684,0.00017999,2]
[401278251,1768097447897,-500.0,0.00017999,2]
[401278252,1768097447907,-500.0,0.00017999,2]
[401278253,1768097447915,-508.55447635,0.00017999,2]
[401278254,1768097447926,-500.0,0.00017999,2]
[401278255,1768097447935,-500.0,0.00017999,2]
[401278256,1768097447944,-511.45493644,0.00017999,2]
[401278257,1768097447952,-500.0,0.00017999,2]
[401278258,1768097447962,-500.0,0.00017999,2]
[401278259,1768097447974,-500.0,0.00017999,2]
[401278260,1768097447984,-629.25,0.00017999,2]
[401278261,1768097447993,-500.0,0.00017999,2]
[401278262,1768097448003,-500.0,0.00017999,2]
[401278263,1768097448011,-506.42227184,0.00017999,2]
[401278264,1768097448022,-500.0,0.00017999,2]
[401278265,1768097448031,-500.0,0.00017999,2]
[401278266,1768097448042,-506.04921746,0.00017999,2]
[401278267,1768097448052,-500.0,0.00017999,2]
[401278268,1768097448063,-500.0,0.00017999,2]
[401278269,1768097448072,-500.0,0.00017999,2]
[401278270,1768097448082,-500.0,0.00017999,2]
[401278271,1768097448091,-500.0,0.00017999,2]
[401278272,1768097448101,-500.0,0.00017999,2]
[401278273,1768097448111,-269.02017408,0.00017999,2]
[401278274,1768097448120,-300.0,0.00017999,2]
[401278275,1768097448130,-439892.11480838,0.00018,2]
[401278276,1768097448139,-428892.34678221,0.00018,2]
[401278277,1768097448148,-1188.39795427,0.00018,2]
[401278278,1768097448158,-158.0,0.00018,2]
[401278279,1768097448167,-152.0,0.00018,2]
[401278280,1768097448177,-154.64445498,0.00018,2]
[401278281,1768097448187,-151.132306,0.00018,2]
[401278282,1768097448196,-1000.0,0.00018,2]
[401278283,1768097448205,-779.72980977,0.00018,2]
[401278284,1768097448215,-1093.59,0.00018,7]
[401278285,1768097448224,-474.74494,0.0001807,2]
[401278286,1768097448234,-474.74494,0.0001807,2]
[401278287,1768097448243,-474.74494,0.0001807,2]
[401278288,1768097448253,-474.74493,0.0001807,2]
[401278289,1768097448263,-474.74494,0.0001807,2]
[401278290,1768097448276,-474.74494,0.0001807,2]
[401278291,1768097448286,-474.74494,0.0001807,2]
[401278292,1768097448295,-474.74494,0.0001807,2]
[401278293,1768097448307,-474.74494,0.0001807,2]
[401278294,1768097448317,-474.74494,0.0001807,2]
[401278295,1768097448326,-168.0,0.00018097,2]
[401278296,1768097448335,-168.0,0.00018151,2]
[401278297,1768097448346,-1000.0,0.00018188,2]
[401278298,1768097448356,-3825.34,0.00018212,2]
[401278299,1768097448365,-1300.0,0.00018249,2]
[401278300,1768097448375,-500.0,0.00018397,2]
[401278301,1768097448384,-998.0,0.00018398,2]
[401278302,1768097448395,-209.1,0.0001845,2]
[401278303,1768097448406,-514.52722561,0.00018521,2]
[401278304,1768097448416,-1000.0,0.00018573,2]
[401278305,1768097448426,-168.0,0.00018595,2]
[401278306,1768097448436,-168.0,0.00018649,2]
[401278307,1768097448446,-153.79,0.00018673,2]
[401278308,1768097448455,-1000.0,0.00018695,2]
[401278309,1768097448464,-3825.34,0.00018707,2]
[401278310,1768097448474,-155.4,0.00018779,2]
[401278311,1768097448484,-168.0,0.00018915,2]
[401278312,1768097448494,-454.04310579,0.00018941,2]
[401278313,1768097448504,-158.17092324,0.00018945,2]
[401278314,1768097448514,-2913.0,0.00018958,2]
[401278315,1768097448524,-10181.65249045,0.00018994,2]
[401278316,1768097448534,-154.75634214,0.00019,2]
[401278317,1768097448543,-5653.76548178,0.00019,2]
[401278318,1768097448552,-300.0,0.00019,2]
[401278319,1768097448562,-500.0,0.0001902,2]
[401278320,1768097448572,-1500.0,0.00019028,2]
[401278321,1768097448582,-168.0,0.00019059,2]
[401278322,1768097448592,-200.0,0.00019073,2]
[401278323,1768097448601,-1000.0,0.00019092,2]
[401278324,1768097448611,-150.0,0.00019115,2]
[401278325,1768097448620,-168.0,0.00019117,2]
[401278326,1768097448630,-1000.0,0.00019148,2]
[401278327,1768097448639,-209.1,0.00019177,2]
[401278328,1768097448649,-248.621506,0.00019178,2]
[401278329,1768097448659,-248.621506,0.00019178,2]
[401278330,1768097448668,-248.621506,0.00019178,2]
[401278331,1768097448677,-248.621506,0.00019178,2]
[401278332,1768097448686,-248.621506,0.00019178,2]
[401278333,1768097448696,-248.621506,0.00019178,2]
[401278334,1768097448705,-248.621506,0.00019178,2]
[401278335,1768097448715,-248.621506,0.00019178,2]
[401278336,1768097448724,-248.621506,0.00019178,2]
[401278337,1768097448733,-248.621506,0.00019178,2]
[401278338,1768097448742,-248.621506,0.00019178,2]
[401278339,1768097448751,-248.621506,0.00019178,2]
[401278340,1768097448761,-248.621506,0.00019178,2]
[401278341,1768097448770,-248.621506,0.00019178,2]
[401278342,1768097448779,-248.621506,0.00019178,2]
[401278343,1768097448788,-248.621506,0.00019178,2]
[401278344,1768097448797,-248.621506,0.00019178,2]
[401278345,1768097448806,-248.621506,0.00019178,2]
[401278346,1768097448815,-248.621506,0.00019178,2]
[401278347,1768097448825,-248.621503,0.00019178,2]
[401278348,1768097448834,-168.0,0.00019202,2]
[401278349,1768097448843,-3825.34,0.00019202,2]
[401278350,1768097448853,-1000.0,0.00019224,2]
[401278351,1768097448862,-168.0,0.00019495,2]
[401278352,1768097448872,-1000.0,0.00019497,2]
[401278353,1768097448881,-1000.0,0.00019504,2]
[401278354,1768097448890,-1000.0,0.00019524,2]
[401278355,1768097448902,-1000.0,0.00019531,2]
[401278356,1768097448911,-500.0,0.00019534,2]
[401278357,1768097448921,-1000.0,0.0001954,2]
[401278358,1768097448930,-1000.0,0.0001954,2]
[401278359,1768097448939,-1000.0,0.00019548,2]
[401278360,1768097448949,-1000.0,0.00019568,2]
[401278361,1768097448959,-1000.0,0.00019603,2]
[401278362,1768097448969,-1000.0,0.00019608,2]
[401278363,1768097448978,-1000.0,0.00019612,2]
[401278364,1768097448987,-458.77495,0.00019612,2]
[401278365,1768097448997,-1000.0,0.00019614,2]
[401278366,1768097449006,-1033.36038927,0.00019622,2]
[401278367,1768097449017,-1000.0,0.00019639,2]
[401278368,1768097449027,-1000.0,0.00019643,2]
[401278369,1768097449036,-1000.0,0.0001965,2]
[401278370,1768097449046,-1000.0,0.00019651,2]
[401278371,1768097449055,-1000.0,0.00019654,2]
[401278372,1768097449065,-166.66,0.00019657,2]
[401278373,1768097449075,-1000.0,0.00019666,2]
[401278374,1768097449086,-1000.0,0.0001967,2]
[401278375,1768097449096,-1000.0,0.00019671,2]
[401278376,1768097449108,-1000.0,0.00019672,2]
[401278377,1768097449119,-1000.0,0.00019672,2]
[401278378,1768097449130,-1000.0,0.00019675,2]
[401278379,1768097449139,-1000.0,0.0001971,2]
[401278380,1768097449148,-150.0,0.00019711,2]
[401278381,1768097449158,-1000.0,0.00019712,2]
[401278382,1768097449167,-1000.0,0.00019713,2]
[401278383,1768097449176,-1000.0,0.00019723,2]
[401278384,1768097449185,-1000.0,0.00019723,2]
[401278385,1768097449195,-1000.0,0.00019729,2]
[401278386,1768097449205,-1000.0,0.00019733,2]
[401278387,1768097449214,-1000.0,0.00019745,2]
[401278388,1768097449224,-1000.0,0.0001975,2]
[401278389,1768097449233,-1000.0,0.00019751,2]
[401278390,1768097449243,-150.0,0.00019753,2]
[401278391,1768097449252,-1000.0,0.00019753,2]
[401278392,1768097449264,-1000.0,0.00019757,2]
[401278393,1768097449274,-1000.0,0.00019761,2]
[401278394,1768097449285,-1000.0,0.00019765,2]
[401278395,1768097449294,-1000.0,0.00019784,2]
[401278396,1768097449304,-150.0,0.0001979,2]
[401278397,1768097449315,-152.15955554,0.00019793,2]
[401278398,1768097449326,-1000.0,0.000198,2]
[401278399,1768097449336,-1000.0,0.00019807,2]
[401278400,1768097449348,-150.0,0.00019809,2]
[401278401,1768097449358,-150.0,0.00019811,2]
[401278402,1768097449368,-150.0,0.00019817,2]
[401278403,1768097449383,-150.0,0.00019874,2]
[401278404,1768097449392,-1000.0,0.00019887,2]
[401278405,1768097449402,-162.22925288,0.000199,2]
[401278406,1768097449412,-162.22925288,0.000199,2]
[401278407,1768097449422,-162.22925288,0.000199,2]
[401278408,1768097449432,-162.22925288,0.000199,2]
[401278409,1768097449441,-209.1,0.00019905,2]
[401278410,1768097449451,-1300.0,0.0001994,2]
[401278411,1768097449460,-152.0,0.0002,2]
[401278412,1768097449470,-152.0,0.0002,2]
[401278413,1768097449479,-152.0,0.0002,2]
[401278414,1768097449489,-250.2,0.0002,2]
[401278415,1768097449498,-150.0,0.0002,2]
[401278416,1768097449508,-152.0,0.0002,2]
[401278417,1768097449518,-152.0,0.0002,2]
[401278418,1768097449528,-240.0,0.0002,2]
[401278419,1768097449537,-152.0,0.0002,2]
[401278420,1768097449547,-152.0,0.0002,2]
[401278421,1768097449556,-168.0,0.00020116,2]
[401278422,1768097449566,-168.0,0.00020146,2]
[401278423,1768097449575,-10181.65249045,0.00020155,2]
[401278424,1768097449585,-500.0,0.000202,2]
[401278425,1768097449594,-500.0,0.00020201,2]
[401278426,1768097449604,-500.0,0.00020202,2]
[401278427,1768097449614,-499.9999,0.00020203,2]
[401278428,1768097449623,-1000.0,0.00020209,2]
[401278429,1768097449633,-168.0,0.00020313,2]
[401278430,1768097449643,-166.66,0.00020468,2]
[401278431,1768097449652,-168.0,0.00020629,2]
[401278432,1768097449662,-209.1,0.00020633,2]
[401278433,1768097449671,-666.0,0.00020691,2]
[401278434,1768097449680,-1300.0,0.00020705,2]
[401278435,1768097449690,-1201.689,0.00020783,2]
[401278436,1768097449699,-914.525,0.00020783,2]
[401278437,1768097449708,-500.0,0.00020791,2]
[401278438,1768097449718,-4820.0,0.00020802,2]
[401278439,1768097449728,-2437.0,0.00020802,2]
[401278440,1768097449737,-6555.0,0.00020803,2]
[401278441,1768097449747,-1000.0,0.00020983,7]
[401278442,1768097449756,-350.0,0.00021,2]
[401278443,1768097449767,-150.0,0.00021,2]
[401278444,1768097449778,-155.4,0.00021127,2]
[401278445,1768097449787,-998.0,0.00021137,2]
[401278446,1768097449798,-503.80448355,0.00021199,2]
[401278447,1768097449809,-2000.0,0.000212,2]
[401278448,1768097449819,-5521.0,0.000212,5]
[401278449,1768097449828,-500.0,0.00021219,2]
[401278450,1768097449837,-166.66,0.0002128,2]
[401278451,1768097449847,-500.0,0.00021284,2]
[401278452,1768097449856,-10181.65249045,0.00021316,2]
[401278453,1768097449865,-153.79,0.00021341,2]
[401278454,1768097449876,-209.1,0.00021361,2]
[401278455,1768097449885,-1000.0,0.000214,2]
[401278456,1768097449894,-500.0,0.00021431,2]
[401278457,1768097449906,-957.56055746,0.000215,2]
[401278458,1768097449915,-1300.0,0.00021583,2]
[401278459,1768097449926,-500.0,0.00021691,2]
[401278460,1768097449935,-1300.0,0.00021699,2]
[401278461,1768097449945,-614.497,0.0002186,2]
[401278462,1768097449956,-1331.055,0.0002186,2]
[401278463,1768097449965,-161.677,0.0002186,2]
[401278464,1768097449974,-1406.346,0.0002186,2]
[401278465,1768097449984,-3468.0,0.0002186,2]
[401278466,1768097449994,-1267.0,0.0002186,2]
[401278467,1768097450003,-506.0,0.0002186,2]
[401278468,1768097450013,-5000.0,0.00021918,2]
[401278469,1768097450024,-1000.0,0.00021918,2]
[401278470,1768097450035,-500.0,0.00021918,2]
[401278471,1768097450045,-163.40796315,0.00021918,2]
[401278472,1768097450055,-168.0,0.00021945,2]
[401278473,1768097450064,-150.0,0.0002195,2]
[401278474,1768097450074,-677.47847321,0.00021999,2]
[401278475,1768097450083,-300.0,0.00021999,2]
[401278476,1768097450093,-11167.83320543,0.00022,2]
[401278477,1768097450102,-201.04156856,0.00022,3]
[401278478,1768097450111,-146907.29,0.00022,2]
[401278479,1768097450120,-4040.21,0.00022,7]
[401278480,1768097450130,-200.0,0.00022,2]
[401278481,1768097450139,-333.0,0.00022,2]
[401278482,1768097450148,-300.0,0.00022044,2]
[401278483,1768097450158,-18790.92110746,0.00022045,3]
[401278484,1768097450168,-209.1,0.00022089,2]
[401278485,1768097450177,-166.66,0.00022091,2]
[401278486,1768097450186,-500.0,0.0002218,2]
[401278487,1768097450195,-333.0,0.00022192,7]
[401278488,1768097450204,-1000.0,0.00022192,2]
[401278489,1768097450214,-1000.0,0.0002223,2]
[401278490,1768097450223,-150.0,0.00022315,2]
[401278491,1768097450232,-150.0,0.00022315,2]
[401278492,1768097450242,-150.20468464,0.00022315,2]
[401278493,1768097450251,-150.0,0.00022315,2]
[401278494,1768097450261,-150.0,0.00022315,2]
[401278495,1768097450275,-150.0,0.00022315,2]
[401278496,1768097450284,-150.0,0.00022315,2]
[401278497,1768097450294,-150.26374239,0.00022315,2]
[401278498,1768097450303,-150.0,0.00022315,2]
[401278499,1768097450314,-150.58471111,0.00022315,2]
[401278500,1768097450323,-150.0,0.00022315,2]
[401278501,1768097450333,-150.78921682,0.00022315,2]
[401278502,1768097450342,-150.56873292,0.00022315,2]
[401278503,1768097450352,-150.06091379,0.00022315,2]
[401278504,1768097450361,-152.48889008,0.00022315,2]
[401278505,1768097450371,-150.0,0.00022315,2]
[401278506,1768097450381,-358.38,0.00022353,2]
[401278507,1768097450391,-1124.98,0.00022353,2]
[401278508,1768097450400,-171.45,0.00022353,2]
[401278509,1768097450409,-333.0,0.00022466,7]
[401278510,1768097450419,-1000.0,0.00022466,2]
[401278511,1768097450428,-10181.65249045,0.00022478,2]
[401278512,1768097450438,-150.0,0.00022506,4]
[401278513,1768097450448,-168.0,0.00022513,2]
[401278514,1768097450457,-4741.21,0.00022552,2]
[401278515,1768097450466,-655.0,0.000226,2]
[401278516,1768097450475,-903.0,0.000226,2]
[401278517,1768097450485,-290.0,0.00022618,10]
[401278518,1768097450495,-150.0,0.00022697,4]
[401278519,1768097450504,-333.0,0.0002274,7]
[401278520,1768097450513,-1000.0,0.0002274,2]
[401278521,1768097450523,-3000.0,0.00022808,7]
[401278522,1768097450532,-168.0,0.00022809,2]
[401278523,1768097450542,-209.1,0.00022817,2]
[401278524,1768097450554,-150.0,0.00022887,4]
[401278525,1768097450572,-162.0,0.000229,3]
[401278526,1768097450581,-197.37159765,0.000229,2]
[401278527,1768097450591,-178.60791105,0.000229,4]
[401278528,1768097450600,-10936.182224,0.000229,2]
[401278529,1768097450609,-166.66,0.00022902,2]
[401278530,1768097450618,-666.52642717,0.0002299,2]
[401278531,1768097450629,-300.0,0.00022999,2]
[401278532,1768097450639,-146907.29,0.00023,2]
[401278533,1768097450648,-4040.21,0.00023,7]
[401278534,1768097450657,-400.0,0.00023,2]
[401278535,1768097450667,-252.0,0.00023,7]
[401278536,1768097450677,-168.0,0.00023,7]
[401278537,1768097450686,-333.0,0.00023014,7]
[401278538,1768097450695,-333.0,0.00023014,7]
[401278539,1768097450704,-1000.0,0.00023014,2]
[401278540,1768097450714,-500.0,0.00023051,2]
[401278541,1768097450723,-500.0,0.00023051,2]
[401278542,1768097450733,-154.30670826,0.00023052,2]
[401278543,1768097450742,-150.0,0.00023078,4]
[401278544,1768097450752,-168.0,0.00023124,2]
[401278545,1768097450761,-150.0,0.00023142,4]
[401278546,1768097450770,-150.0,0.00023142,4]
[401278547,1768097450780,-150.0,0.00023175,2]
[401278548,1768097450792,-150.79,0.00023175,2]
[401278549,1768097450804,-150.0,0.00023175,2]
[401278550,1768097450814,-150.0,0.00023175,2]
[401278551,1768097450826,-150.0,0.00023269,4]
[401278552,1768097450836,-252.0,0.00023288,7]
[401278553,1768097450846,-1000.0,0.00023288,2]
[401278554,1768097450856,-150.0,0.00023459,4]
[401278555,1768097450866,-155.4,0.00023474,2]
[401278556,1768097450876,-454.04310579,0.00023533,2]
[401278557,1768097450888,-209.1,0.00023544,2]
[401278558,1768097450898,-150.0,0.00023555,4]
[401278559,1768097450908,-150.0,0.00023555,4]
[401278560,1768097450919,-150.0,0.00023555,4]
[401278561,1768097450928,-1000.0,0.00023562,2]
[401278562,1768097451128,-834.0,0.00023625,3]
[401278563,1768097451138,-10181.65249045,0.00023639,2]
[401278564,1768097451148,-150.0,0.0002365,4]
[401278565,1768097451159,-500.0,0.00023742,2]
[401278566,1768097451168,-1201.0,0.00023783,2]
[401278567,1768097451178,-914.0,0.00023783,2]
[401278568,1768097451187,-168.0,0.00023799,2]
[401278569,1768097451197,-231.98347366,0.000238,2]
[401278570,1768097451207,-4212.75957593,0.000238,2]
[401278571,1768097451218,-4820.0,0.00023802,2]
[401278572,1768097451228,-2437.0,0.00023802,2]
[401278573,1768097451237,-6555.0,0.00023803,2]
[401278574,1768097451246,-1000.0,0.00023836,2]
[401278575,1768097451256,-150.0,0.00023841,4]
[401278576,1768097451269,-998.0,0.00023876,2]
[401278577,1768097451278,-834.0,0.00023885,3]
[401278578,1768097451288,-146907.29,0.000239,2]
[401278579,1768097451298,-4040.21,0.000239,7]
[401278580,1768097451308,-1007.0,0.000239,2]
[401278581,1768097451317,-3000.0,0.00023904,7]
[401278582,1768097451327,-162.0,0.00023944,3]
[401278583,1768097451336,-1300.0,0.00023944,2]
[401278584,1768097451347,-1000.0,0.00023958,2]
[401278585,1768097451358,-150.0,0.00023968,4]
[401278586,1768097451368,-150.0,0.00023968,4]
[401278587,1768097451378,-16673.09034768,0.00024,2]
[401278588,1768097451388,-1019.92500499,0.00024,2]
[401278589,1768097451397,-10347.30535756,0.00024,14]
[401278590,1768097451407,-3600.0,0.00024,2]
[401278591,1768097451417,-1233.45193161,0.00024,2]
[401278592,1768097451427,-4000.0,0.00024,2]
[401278593,1768097451437,-153.79,0.00024009,2]
[401278594,1768097451446,-162.0,0.00024013,3]
[401278595,1768097451456,-150.0,0.00024032,4]
[401278596,1768097451465,-1000.0,0.0002411,2]
[401278597,1768097451475,-348.0,0.00024164,7]
[401278598,1768097451484,-252.0,0.00024164,7]
[401278599,1768097451494,-333.0,0.00024164,7]
[401278600,1768097451504,-168.0,0.00024164,7]
[401278601,1768097451514,-163.0,0.00024175,3]
[401278602,1768097451523,-421.39470484,0.0002421,2]